[Event "Titled Tuesday Blitz March 07 Late 2023"]
[White "Skvortsov, Andrei"]
[Black "Brozyna, Mateusz"]
[WhiteFideId "24108600"]
[BlackFideId "21816140"]
[WhiteElo "2259"]
[BlackElo "2189"]
[Result "1-0"]
[Round "06"]
[TimeControl "180+2"]
[Date "2023.03.07"]
[WhiteClock "0:00:13"]
[BlackClock "0:00:12"]

1. g3 {[%clk 0:03:00]}  Nf6 {[%clk 0:02:59]} 2. Bg2 {[%clk 0:03:00]}  g6 {[%clk 0:03:00]} 3. e4 {[%clk 0:03:00]}  d6 {[%clk 0:02:59]} 4. d4 {[%clk 0:03:00]}  Bg7 {[%clk 0:03:00]} 5. Ne2 {[%clk 0:03:01]}  O-O {[%clk 0:03:00]} 6. O-O {[%clk 0:03:02]}  c5 {[%clk 0:03:00]} 7. c3 {[%clk 0:03:01]}  Nc6 {[%clk 0:02:58]} 8. dxc5 {[%clk 0:03:00]}  dxc5 {[%clk 0:02:58]} 9. Be3 {[%clk 0:03:01]}  Nd7 {[%clk 0:02:19]} 10. f4 {[%clk 0:02:57]}  Qb6 {[%clk 0:02:07]} 11. Qc2 {[%clk 0:02:48]}  Nf6 {[%clk 0:01:21]} 12. h3 {[%clk 0:02:44]}  Be6 {[%clk 0:01:19]} 13. Nd2 {[%clk 0:02:43]}  Rad8 {[%clk 0:01:18]} 14. g4 {[%clk 0:02:36]}  Bxg4 {[%clk 0:01:12]} 15. hxg4 {[%clk 0:02:28]}  Nxg4 {[%clk 0:01:13]} 16. Nc4 {[%clk 0:02:28]}  Nxe3 {[%clk 0:01:09]} 17. Nxe3 {[%clk 0:02:28]}  c4 {[%clk 0:01:09]} 18. Rf3 {[%clk 0:02:26]}  Rd3 {[%clk 0:01:08]} 19. Qc1 {[%clk 0:02:19]}  e5 {[%clk 0:01:01]} 20. Kh1 {[%clk 0:02:15]}  Qc5 {[%clk 0:00:52]} 21. Nd5 {[%clk 0:02:13]}  f5 {[%clk 0:00:36]} 22. b4 {[%clk 0:00:56]}  Qd6 {[%clk 0:00:36]} 23. Rxd3 {[%clk 0:00:43]}  cxd3 {[%clk 0:00:37]} 24. Ng3 {[%clk 0:00:38]}  exf4 {[%clk 0:00:34]} 25. Qxf4 {[%clk 0:00:32]}  Be5 {[%clk 0:00:34]} 26. Qe3 {[%clk 0:00:15]}  Bxg3 {[%clk 0:00:23]} 27. Qxd3 {[%clk 0:00:15]}  f4 {[%clk 0:00:21]} 28. Rf1 {[%clk 0:00:14]}  Ne5 {[%clk 0:00:20]} 29. Qd4 {[%clk 0:00:13]}  f3 {[%clk 0:00:16]} 30. Bh3 {[%clk 0:00:11]}  Re8 {[%clk 0:00:03]} 31. Ne3 {[%clk 0:00:10]}  Bf4 {[%clk 0:00:02]} 32. Qxd6 {[%clk 0:00:10]}  Bxe3 {[%clk 0:00:02]} 33. Qd5+ {[%clk 0:00:10]}  Kg7 {[%clk 0:00:02]} 34. Qxb7+ {[%clk 0:00:10]}  Kh6 {[%clk 0:00:01]} 35. Qb5 {[%clk 0:00:10]}  Re7 {[%clk 0:00:01]} 36. Qa4 {[%clk 0:00:09]}  Bg5 {[%clk 0:00:02]} 37. Bg4 {[%clk 0:00:09]}  Nxg4 {[%clk 0:00:02]} 38. Rxf3 {[%clk 0:00:10]}  Ne5 {[%clk 0:00:02]} 39. Rh3+ {[%clk 0:00:10]}  Kg7 {[%clk 0:00:02]} 40. Qd1 {[%clk 0:00:11]}  Bf6 {[%clk 0:00:03]} 41. Qd5 {[%clk 0:00:11]}  h5 {[%clk 0:00:04]} 42. Rg3 {[%clk 0:00:10]}  Ng4 {[%clk 0:00:05]} 43. Kg1 {[%clk 0:00:08]}  Re5 {[%clk 0:00:05]} 44. Qd7+ {[%clk 0:00:08]}  Kh6 {[%clk 0:00:04]} 45. Qd3 {[%clk 0:00:08]}  Bg5 {[%clk 0:00:04]} 46. Qd4 {[%clk 0:00:08]}  Re7 {[%clk 0:00:04]} 47. Qd5 {[%clk 0:00:08]}  Nf6 {[%clk 0:00:04]} 48. Qc5 {[%clk 0:00:07]}  Nxe4 {[%clk 0:00:03]} 49. Rxg5 {[%clk 0:00:03]}  Nxc5 {[%clk 0:00:03]} 50. Rxc5 {[%clk 0:00:04]}  Re1+ {[%clk 0:00:03]} 51. Kf2 {[%clk 0:00:04]}  Ra1 {[%clk 0:00:04]} 52. Ra5 {[%clk 0:00:05]}  Rc1 {[%clk 0:00:04]} 53. Ra3 {[%clk 0:00:04]}  Rc2+ {[%clk 0:00:04]} 54. Ke3 {[%clk 0:00:04]}  h4 {[%clk 0:00:05]} 55. Kd3 {[%clk 0:00:05]}  Rb2 {[%clk 0:00:04]} 56. Rxa7 {[%clk 0:00:06]}  h3 {[%clk 0:00:04]} 57. Re7 {[%clk 0:00:06]}  h2 {[%clk 0:00:04]} 58. Re1 {[%clk 0:00:06]}  Rxa2 {[%clk 0:00:04]} 59. b5 {[%clk 0:00:06]}  g5 {[%clk 0:00:05]} 60. b6 {[%clk 0:00:07]}  g4 {[%clk 0:00:05]} 61. c4 {[%clk 0:00:07]}  g3 {[%clk 0:00:05]} 62. Re6+ {[%clk 0:00:06]}  Kg5 {[%clk 0:00:05]} 63. b7 {[%clk 0:00:05]}  Rb2 {[%clk 0:00:06]} 64. Re5+ {[%clk 0:00:04]}  Kf4 {[%clk 0:00:06]} 65. Rb5 {[%clk 0:00:05]}  Rxb5 {[%clk 0:00:05]} 66. cxb5 {[%clk 0:00:05]}  h1=Q {[%clk 0:00:06]} 67. b8=Q+ {[%clk 0:00:06]}  Kg4 {[%clk 0:00:05]} 68. Qg8+ {[%clk 0:00:06]}  Kh3 {[%clk 0:00:05]} 69. Qh7+ {[%clk 0:00:07]}  Kg2 {[%clk 0:00:05]} 70. Qe4+ {[%clk 0:00:06]}  Kh2 {[%clk 0:00:06]} 71. Qh4+ {[%clk 0:00:06]}  Kg1 {[%clk 0:00:06]} 72. Qxg3+ {[%clk 0:00:06]}  Kf1 {[%clk 0:00:07]} 73. Qf4+ {[%clk 0:00:06]}  Ke1 {[%clk 0:00:06]} 74. Qe4+ {[%clk 0:00:06]}  Qxe4+ {[%clk 0:00:06]} 75. Kxe4 {[%clk 0:00:07]}  Kd2 {[%clk 0:00:07]} 76. b6 {[%clk 0:00:08]}  Kc3 {[%clk 0:00:07]} 77. b7 {[%clk 0:00:09]}  Kb4 {[%clk 0:00:08]} 78. b8=Q+ {[%clk 0:00:10]}  Ka5 {[%clk 0:00:09]} 79. Qe5+ {[%clk 0:00:11]}  Ka6 {[%clk 0:00:10]} 80. Qb2 {[%clk 0:00:11]}  Ka7 {[%clk 0:00:10]} 81. Kd5 {[%clk 0:00:12]}  Ka8 {[%clk 0:00:11]} 82. Kc6 {[%clk 0:00:12]}  Ka7 {[%clk 0:00:12]} 83. Qb7# {[%clk 0:00:13]} 1-0


[Site "https://www.chess.com"]

[Event "Titled Tuesday Blitz March 07 Late 2023"]
[White "Guzman, Christopher"]
[Black "Rangel, Daniel"]
[WhiteFideId "6405096"]
[BlackFideId "2124475"]
[WhiteElo "2281"]
[BlackElo "2256"]
[Result "1-0"]
[Round "06"]
[TimeControl "180+2"]
[Date "2023.03.07"]
[WhiteClock "0:00:44"]
[BlackClock "0:00:06"]

1. e4 {[%clk 0:03:00]}  c5 {[%clk 0:03:00]} 2. Nf3 {[%clk 0:02:59]}  g6 {[%clk 0:03:00]} 3. d4 {[%clk 0:02:57]}  cxd4 {[%clk 0:03:01]} 4. Nxd4 {[%clk 0:02:58]}  Bg7 {[%clk 0:03:01]} 5. c4 {[%clk 0:02:58]}  Nc6 {[%clk 0:03:01]} 6. Be3 {[%clk 0:02:58]}  Nf6 {[%clk 0:03:02]} 7. Nc3 {[%clk 0:02:57]}  O-O {[%clk 0:03:02]} 8. Be2 {[%clk 0:02:57]}  Nxd4 {[%clk 0:02:59]} 9. Bxd4 {[%clk 0:02:57]}  d6 {[%clk 0:03:00]} 10. O-O {[%clk 0:02:56]}  Bd7 {[%clk 0:03:01]} 11. Rc1 {[%clk 0:02:56]}  Bc6 {[%clk 0:03:01]} 12. f3 {[%clk 0:02:55]}  a5 {[%clk 0:03:01]} 13. Qd2 {[%clk 0:02:55]}  Nd7 {[%clk 0:03:01]} 14. Be3 {[%clk 0:02:55]}  Nc5 {[%clk 0:02:58]} 15. Rfd1 {[%clk 0:02:55]}  Be5 {[%clk 0:02:57]} 16. Nd5 {[%clk 0:02:53]}  e6 {[%clk 0:02:53]} 17. Nf4 {[%clk 0:02:51]}  Qh4 {[%clk 0:02:38]} 18. g3 {[%clk 0:02:50]}  Qf6 {[%clk 0:02:37]} 19. b3 {[%clk 0:02:46]}  h5 {[%clk 0:02:31]} 20. Nd3 {[%clk 0:02:42]}  Bd4 {[%clk 0:02:18]} 21. Kg2 {[%clk 0:02:36]}  Rad8 {[%clk 0:01:44]} 22. Bg5 {[%clk 0:02:32]}  Qh8 {[%clk 0:01:39]} 23. Bxd8 {[%clk 0:02:31]}  Rxd8 {[%clk 0:01:35]} 24. Nxc5 {[%clk 0:02:31]}  dxc5 {[%clk 0:01:35]} 25. Qxa5 {[%clk 0:02:31]}  Qf6 {[%clk 0:01:31]} 26. Rd3 {[%clk 0:02:25]}  Kg7 {[%clk 0:01:29]} 27. Rcd1 {[%clk 0:02:25]}  e5 {[%clk 0:01:27]} 28. b4 {[%clk 0:02:23]}  cxb4 {[%clk 0:01:24]} 29. Qxb4 {[%clk 0:02:22]}  g5 {[%clk 0:01:23]} 30. Rf1 {[%clk 0:01:49]}  g4 {[%clk 0:01:06]} 31. Qd2 {[%clk 0:01:49]}  h4 {[%clk 0:00:54]} 32. Qd1 {[%clk 0:01:42]}  Qg6 {[%clk 0:00:41]} 33. Rd2 {[%clk 0:01:35]}  gxf3+ {[%clk 0:00:23]} 34. Bxf3 {[%clk 0:01:34]}  h3+ {[%clk 0:00:19]} 35. Kh1 {[%clk 0:01:34]}  Ra8 {[%clk 0:00:15]} 36. Qe2 {[%clk 0:01:29]}  Ra3 {[%clk 0:00:14]} 37. Rd3 {[%clk 0:01:29]}  Ra4 {[%clk 0:00:14]} 38. Rb3 {[%clk 0:01:25]}  Ra5 {[%clk 0:00:12]} 39. Re1 {[%clk 0:01:25]}  Ra4 {[%clk 0:00:12]} 40. Bh5 {[%clk 0:01:21]}  Qd6 {[%clk 0:00:10]} 41. Bg4 {[%clk 0:01:19]}  Qg6 {[%clk 0:00:07]} 42. Bxh3 {[%clk 0:01:16]}  Ra8 {[%clk 0:00:05]} 43. Qf3 {[%clk 0:01:10]}  Rh8 {[%clk 0:00:04]} 44. Bf5 {[%clk 0:01:10]}  Qf6 {[%clk 0:00:04]} 45. Kg2 {[%clk 0:01:07]}  Kf8 {[%clk 0:00:04]} 46. Rd3 {[%clk 0:01:05]}  Ke7 {[%clk 0:00:04]} 47. Red1 {[%clk 0:01:04]}  Qg5 {[%clk 0:00:03]} 48. R1d2 {[%clk 0:01:03]}  Qh6 {[%clk 0:00:03]} 49. h4 {[%clk 0:01:02]}  Qf6 {[%clk 0:00:03]} 50. Qg4 {[%clk 0:01:02]}  Rh7 {[%clk 0:00:02]} 51. Qg5 {[%clk 0:01:01]}  Rg7 {[%clk 0:00:03]} 52. Qxf6+ {[%clk 0:01:01]}  Kxf6 {[%clk 0:00:04]} 53. Kf3 {[%clk 0:01:01]}  Ke7 {[%clk 0:00:04]} 54. g4 {[%clk 0:01:01]}  f6 {[%clk 0:00:03]} 55. h5 {[%clk 0:01:00]}  Rg8 {[%clk 0:00:02]} 56. h6 {[%clk 0:01:00]}  Rh8 {[%clk 0:00:03]} 57. h7 {[%clk 0:01:00]}  Kd6 {[%clk 0:00:04]} 58. Rh2 {[%clk 0:00:59]}  Kc5 {[%clk 0:00:05]} 59. Be6 {[%clk 0:00:57]}  Be8 {[%clk 0:00:03]} 60. Rh6 {[%clk 0:00:57]}  b6 {[%clk 0:00:02]} 61. Rd1 {[%clk 0:00:54]}  Kb4 {[%clk 0:00:02]} 62. Rdh1 {[%clk 0:00:54]}  Bc5 {[%clk 0:00:02]} 63. Rxf6 {[%clk 0:00:54]}  Be7 {[%clk 0:00:02]} 64. Rf5 {[%clk 0:00:54]}  Bd6 {[%clk 0:00:01]} 65. g5 {[%clk 0:00:50]}  Kc5 {[%clk 0:00:02]} 66. Rf6 {[%clk 0:00:50]}  Be7 {[%clk 0:00:01]} 67. Rf7 {[%clk 0:00:48]}  Bxf7 {[%clk 0:00:01]} 68. Bxf7 {[%clk 0:00:48]}  Bf8 {[%clk 0:00:02]} 69. g6 {[%clk 0:00:48]}  Bg7 {[%clk 0:00:03]} 70. Bg8 {[%clk 0:00:47]}  Kd6 {[%clk 0:00:03]} 71. Kg4 {[%clk 0:00:47]}  Ke7 {[%clk 0:00:04]} 72. Kf5 {[%clk 0:00:47]}  Bf6 {[%clk 0:00:05]} 73. Rd1 {[%clk 0:00:47]}  Bg7 {[%clk 0:00:06]} 74. Rd5 {[%clk 0:00:47]}  Kf8 {[%clk 0:00:05]} 75. Rd7 {[%clk 0:00:46]}  Ke8 {[%clk 0:00:05]} 76. Rxg7 {[%clk 0:00:46]}  Kf8 {[%clk 0:00:06]} 77. Rb7 {[%clk 0:00:46]}  Rxg8 {[%clk 0:00:06]} 78. Rb8+ {[%clk 0:00:45]}  Ke7 {[%clk 0:00:06]} 79. hxg8=Q {[%clk 0:00:44]} 1-0


[Site "https://www.chess.com"]

[Event "Titled Tuesday Blitz March 07 Late 2023"]
[White "Marczuk, Dominik"]
[Black "Fishbein, Alexander"]
[WhiteFideId "1111264"]
[BlackFideId "2000377"]
[WhiteElo "2174"]
[BlackElo "2415"]
[Result "0-1"]
[Round "06"]
[TimeControl "180+2"]
[Date "2023.03.07"]
[WhiteClock "0:00:10"]
[BlackClock "0:01:11"]

1. e4 {[%clk 0:02:51]}  c5 {[%clk 0:02:57]} 2. Nf3 {[%clk 0:02:51]}  d6 {[%clk 0:02:56]} 3. d4 {[%clk 0:02:52]}  cxd4 {[%clk 0:02:57]} 4. Nxd4 {[%clk 0:02:52]}  Nf6 {[%clk 0:02:57]} 5. Nc3 {[%clk 0:02:53]}  Nc6 {[%clk 0:02:58]} 6. f3 {[%clk 0:02:53]}  e5 {[%clk 0:02:57]} 7. Nb3 {[%clk 0:02:46]}  Be7 {[%clk 0:02:57]} 8. Be3 {[%clk 0:02:43]}  O-O {[%clk 0:02:57]} 9. Qd2 {[%clk 0:02:43]}  a5 {[%clk 0:02:57]} 10. Bb5 {[%clk 0:02:42]}  Be6 {[%clk 0:02:57]} 11. O-O-O {[%clk 0:02:38]}  a4 {[%clk 0:02:54]} 12. Nxa4 {[%clk 0:02:35]}  d5 {[%clk 0:02:54]} 13. Bb6 {[%clk 0:02:20]}  Qc8 {[%clk 0:02:51]} 14. Kb1 {[%clk 0:02:16]}  dxe4 {[%clk 0:02:45]} 15. Nac5 {[%clk 0:02:12]}  e3 {[%clk 0:02:28]} 16. Qxe3 {[%clk 0:01:58]}  Nd5 {[%clk 0:02:27]} 17. Qf2 {[%clk 0:01:42]}  Nd4 {[%clk 0:01:23]} 18. Nxe6 {[%clk 0:01:25]}  Qxe6 {[%clk 0:01:18]} 19. Bxd4 {[%clk 0:01:02]}  exd4 {[%clk 0:01:18]} 20. Qxd4 {[%clk 0:00:38]}  Nb4 {[%clk 0:01:18]} 21. a3 {[%clk 0:00:35]}  Nxc2 {[%clk 0:01:15]} 22. Qe4 {[%clk 0:00:10]}  Nxa3+ {[%clk 0:01:11]} 0-1


[Site "https://www.chess.com"]

[Event "Titled Tuesday Blitz March 07 Late 2023"]
[White "Prem, Pranav"]
[Black "Vaglio Munoz, Jaime"]
[WhiteFideId "30901057"]
[BlackFideId "6500145"]
[WhiteElo "1970"]
[BlackElo "2199"]
[Result "0-1"]
[Round "06"]
[TimeControl "180+2"]
[Date "2023.03.07"]
[WhiteClock "0:00:13"]
[BlackClock "0:00:29"]

1. d4 {[%clk 0:03:00]}  d6 {[%clk 0:02:58]} 2. c4 {[%clk 0:02:59]}  e5 {[%clk 0:02:57]} 3. d5 {[%clk 0:02:59]}  f5 {[%clk 0:02:54]} 4. Nc3 {[%clk 0:02:59]}  Nf6 {[%clk 0:02:54]} 5. Qc2 {[%clk 0:02:58]}  g6 {[%clk 0:02:53]} 6. e4 {[%clk 0:02:58]}  Bg7 {[%clk 0:02:53]} 7. Bd3 {[%clk 0:02:56]}  fxe4 {[%clk 0:02:40]} 8. Nxe4 {[%clk 0:02:57]}  O-O {[%clk 0:02:40]} 9. Ne2 {[%clk 0:02:48]}  Na6 {[%clk 0:02:40]} 10. a3 {[%clk 0:02:31]}  Nxe4 {[%clk 0:02:39]} 11. Bxe4 {[%clk 0:02:32]}  Nc5 {[%clk 0:02:39]} 12. Ng3 {[%clk 0:02:24]}  Qh4 {[%clk 0:02:28]} 13. O-O {[%clk 0:02:18]}  Bh6 {[%clk 0:02:23]} 14. Bxh6 {[%clk 0:02:10]}  Qxh6 {[%clk 0:02:21]} 15. b4 {[%clk 0:02:01]}  Nxe4 {[%clk 0:02:20]} 16. Nxe4 {[%clk 0:02:02]}  Bf5 {[%clk 0:02:17]} 17. c5 {[%clk 0:01:52]}  Rf7 {[%clk 0:01:52]} 18. Rae1 {[%clk 0:01:39]}  Raf8 {[%clk 0:01:51]} 19. f3 {[%clk 0:01:39]}  g5 {[%clk 0:01:49]} 20. Qd2 {[%clk 0:01:31]}  Bxe4 {[%clk 0:01:47]} 21. Rxe4 {[%clk 0:01:32]}  Rf4 {[%clk 0:01:41]} 22. Rfe1 {[%clk 0:01:23]}  g4 {[%clk 0:01:38]} 23. Rxf4 {[%clk 0:01:16]}  Qxf4 {[%clk 0:01:32]} 24. Qxf4 {[%clk 0:01:12]}  Rxf4 {[%clk 0:01:33]} 25. fxg4 {[%clk 0:01:11]}  Rxg4 {[%clk 0:01:34]} 26. cxd6 {[%clk 0:01:00]}  cxd6 {[%clk 0:01:35]} 27. Rc1 {[%clk 0:01:00]}  Rf4 {[%clk 0:00:57]} 28. Rc8+ {[%clk 0:00:35]}  Rf8 {[%clk 0:00:56]} 29. Rxf8+ {[%clk 0:00:34]}  Kxf8 {[%clk 0:00:56]} 30. Kf2 {[%clk 0:00:34]}  Kf7 {[%clk 0:00:55]} 31. g4 {[%clk 0:00:30]}  h5 {[%clk 0:00:40]} 32. g5 {[%clk 0:00:27]}  h4 {[%clk 0:00:34]} 33. Kf3 {[%clk 0:00:22]}  h3 {[%clk 0:00:34]} 34. Kg4 {[%clk 0:00:19]}  Kg6 {[%clk 0:00:32]} 35. a4 {[%clk 0:00:19]}  e4 {[%clk 0:00:26]} 36. Kf4 {[%clk 0:00:17]}  e3 {[%clk 0:00:27]} 37. Kxe3 {[%clk 0:00:16]}  Kxg5 {[%clk 0:00:28]} 38. Kf3 {[%clk 0:00:14]}  Kf5 {[%clk 0:00:27]} 39. Kg3 {[%clk 0:00:15]}  Ke5 {[%clk 0:00:28]} 40. Kxh3 {[%clk 0:00:15]}  Kxd5 {[%clk 0:00:28]} 41. Kg4 {[%clk 0:00:16]}  Kc4 {[%clk 0:00:25]} 42. h4 {[%clk 0:00:16]}  d5 {[%clk 0:00:26]} 43. h5 {[%clk 0:00:16]}  d4 {[%clk 0:00:27]} 44. h6 {[%clk 0:00:17]}  d3 {[%clk 0:00:28]} 45. h7 {[%clk 0:00:18]}  d2 {[%clk 0:00:28]} 46. h8=Q {[%clk 0:00:14]}  d1=Q+ {[%clk 0:00:29]} 47. Kf4 {[%clk 0:00:13]}  Qd4+ {[%clk 0:00:29]} 0-1


[Site "https://www.chess.com"]

[Event "Titled Tuesday Blitz March 07 Late 2023"]
[White "Yano, William Jorge Froes"]
[Black "Lewtak, Damian"]
[WhiteFideId "2112949"]
[BlackFideId "1141724"]
[WhiteElo "2122"]
[BlackElo "2302"]
[Result "1-0"]
[Round "06"]
[TimeControl "180+2"]
[Date "2023.03.07"]
[WhiteClock "0:01:46"]
[BlackClock "0:01:55"]

1. e4 {[%clk 0:03:00]}  c5 {[%clk 0:03:00]} 2. Nf3 {[%clk 0:03:01]}  d6 {[%clk 0:03:00]} 3. Bb5+ {[%clk 0:03:02]}  Bd7 {[%clk 0:03:00]} 4. Bxd7+ {[%clk 0:03:02]}  Qxd7 {[%clk 0:03:01]} 5. O-O {[%clk 0:03:02]}  Nf6 {[%clk 0:03:01]} 6. Re1 {[%clk 0:02:57]}  Nc6 {[%clk 0:03:01]} 7. c3 {[%clk 0:02:57]}  e6 {[%clk 0:02:58]} 8. d4 {[%clk 0:02:57]}  cxd4 {[%clk 0:02:59]} 9. cxd4 {[%clk 0:02:58]}  d5 {[%clk 0:03:00]} 10. e5 {[%clk 0:02:58]}  Ne4 {[%clk 0:03:01]} 11. Nbd2 {[%clk 0:02:59]}  Nxd2 {[%clk 0:03:01]} 12. Bxd2 {[%clk 0:03:00]}  Be7 {[%clk 0:02:43]} 13. h4 {[%clk 0:02:58]}  Rc8 {[%clk 0:02:40]} 14. Rc1 {[%clk 0:02:51]}  O-O {[%clk 0:02:38]} 15. h5 {[%clk 0:02:51]}  h6 {[%clk 0:02:38]} 16. a3 {[%clk 0:02:27]}  b6 {[%clk 0:02:29]} 17. Qe2 {[%clk 0:02:27]}  Rc7 {[%clk 0:02:23]} 18. g4 {[%clk 0:02:24]}  f6 {[%clk 0:02:16]} 19. exf6 {[%clk 0:02:15]}  Rxf6 {[%clk 0:02:16]} 20. g5 {[%clk 0:02:15]}  hxg5 {[%clk 0:02:14]} 21. Nxg5 {[%clk 0:01:50]}  Nxd4 {[%clk 0:02:07]} 22. Qd3 {[%clk 0:01:50]}  Rxc1 {[%clk 0:01:55]} 23. Qh7+ {[%clk 0:01:46]} 1-0


[Site "https://www.chess.com"]

[Event "Titled Tuesday Blitz March 07 Late 2023"]
[White "Mustafayev, Farid"]
[Black "Seletsky, Grigory"]
[WhiteFideId "13408771"]
[BlackFideId "14112191"]
[WhiteElo "2269"]
[BlackElo "2490"]
[Result "1-0"]
[Round "06"]
[TimeControl "180+2"]
[Date "2023.03.07"]
[WhiteClock "0:00:50"]
[BlackClock "0:00:08"]

1. d4 {[%clk 0:03:00]}  d6 {[%clk 0:02:59]} 2. Nf3 {[%clk 0:03:00]}  Nd7 {[%clk 0:02:58]} 3. Bf4 {[%clk 0:03:00]}  g6 {[%clk 0:02:56]} 4. e4 {[%clk 0:03:00]}  Bg7 {[%clk 0:02:56]} 5. Nbd2 {[%clk 0:03:00]}  Ngf6 {[%clk 0:02:56]} 6. h3 {[%clk 0:02:59]}  O-O {[%clk 0:02:55]} 7. Bc4 {[%clk 0:02:59]}  e5 {[%clk 0:02:51]} 8. dxe5 {[%clk 0:02:57]}  dxe5 {[%clk 0:02:47]} 9. Be3 {[%clk 0:02:57]}  Nh5 {[%clk 0:02:42]} 10. O-O {[%clk 0:02:56]}  Nf4 {[%clk 0:02:41]} 11. Re1 {[%clk 0:02:54]}  c6 {[%clk 0:02:37]} 12. Bf1 {[%clk 0:02:54]}  Qe7 {[%clk 0:02:29]} 13. g3 {[%clk 0:02:50]}  Ne6 {[%clk 0:02:27]} 14. c3 {[%clk 0:02:51]}  Rd8 {[%clk 0:02:23]} 15. Qc2 {[%clk 0:02:51]}  Ndc5 {[%clk 0:02:22]} 16. b4 {[%clk 0:02:44]}  Nd7 {[%clk 0:02:22]} 17. Rad1 {[%clk 0:02:43]}  a5 {[%clk 0:02:21]} 18. a3 {[%clk 0:02:43]}  axb4 {[%clk 0:02:20]} 19. axb4 {[%clk 0:02:43]}  b5 {[%clk 0:02:17]} 20. Nb3 {[%clk 0:02:41]}  Bb7 {[%clk 0:02:09]} 21. Na5 {[%clk 0:02:31]}  Ndf8 {[%clk 0:02:04]} 22. Bb6 {[%clk 0:02:17]}  Rdc8 {[%clk 0:02:01]} 23. c4 {[%clk 0:01:47]}  c5 {[%clk 0:01:47]} 24. cxb5 {[%clk 0:01:41]}  cxb4 {[%clk 0:01:45]} 25. Qb2 {[%clk 0:01:25]}  Nd7 {[%clk 0:01:41]} 26. Nxb7 {[%clk 0:01:25]}  Nxb6 {[%clk 0:01:40]} 27. Nd6 {[%clk 0:01:25]}  Rc3 {[%clk 0:01:26]} 28. Bg2 {[%clk 0:01:18]}  Na4 {[%clk 0:00:51]} 29. Qxb4 {[%clk 0:01:16]}  Nd4 {[%clk 0:00:52]} 30. Nxd4 {[%clk 0:01:12]}  exd4 {[%clk 0:00:52]} 31. e5 {[%clk 0:01:13]}  Bxe5 {[%clk 0:00:39]} 32. Bxa8 {[%clk 0:01:08]}  Qxd6 {[%clk 0:00:39]} 33. Qxd6 {[%clk 0:01:07]}  Bxd6 {[%clk 0:00:38]} 34. Rxd4 {[%clk 0:01:07]}  Bc5 {[%clk 0:00:29]} 35. Rxa4 {[%clk 0:01:07]}  Rxg3+ {[%clk 0:00:29]} 36. Bg2 {[%clk 0:01:06]}  Rb3 {[%clk 0:00:27]} 37. Ra8+ {[%clk 0:01:01]}  Kg7 {[%clk 0:00:26]} 38. Rb8 {[%clk 0:01:00]}  Rb2 {[%clk 0:00:23]} 39. Rf1 {[%clk 0:01:01]}  h5 {[%clk 0:00:22]} 40. Rb7 {[%clk 0:01:01]}  Kf8 {[%clk 0:00:19]} 41. Bd5 {[%clk 0:01:01]}  f5 {[%clk 0:00:20]} 42. Rf7+ {[%clk 0:01:01]}  Ke8 {[%clk 0:00:19]} 43. Kg2 {[%clk 0:01:00]}  Bd4 {[%clk 0:00:12]} 44. Re1+ {[%clk 0:00:53]}  Kd8 {[%clk 0:00:11]} 45. Bc6 {[%clk 0:00:50]}  Rxf2+ {[%clk 0:00:08]} 46. Kh1 {[%clk 0:00:50]} 1-0


[Site "https://www.chess.com"]

[Event "Titled Tuesday Blitz March 07 Late 2023"]
[White "Kovacs, Klara"]
[Black "Vlassov, Nikolai"]
[WhiteFideId "733210"]
[BlackFideId "4103360"]
[WhiteElo "2179"]
[BlackElo "2324"]
[Result "1-0"]
[Round "06"]
[TimeControl "180+2"]
[Date "2023.03.07"]
[WhiteClock "0:00:34"]
[BlackClock "0:00:02"]

1. d4 {[%clk 0:02:41]}  Nf6 {[%clk 0:02:58]} 2. Nf3 {[%clk 0:02:42]}  e6 {[%clk 0:02:58]} 3. g3 {[%clk 0:02:40]}  b5 {[%clk 0:02:58]} 4. Bg2 {[%clk 0:02:40]}  Bb7 {[%clk 0:02:58]} 5. O-O {[%clk 0:02:40]}  c5 {[%clk 0:02:58]} 6. c3 {[%clk 0:02:38]}  Na6 {[%clk 0:02:58]} 7. a4 {[%clk 0:02:36]}  b4 {[%clk 0:02:58]} 8. Bg5 {[%clk 0:02:35]}  Be7 {[%clk 0:02:58]} 9. Re1 {[%clk 0:02:33]}  O-O {[%clk 0:02:56]} 10. Ne5 {[%clk 0:02:29]}  Bxg2 {[%clk 0:02:55]} 11. Kxg2 {[%clk 0:02:29]}  Rc8 {[%clk 0:02:51]} 12. Nd2 {[%clk 0:02:29]}  bxc3 {[%clk 0:02:50]} 13. bxc3 {[%clk 0:02:28]}  cxd4 {[%clk 0:02:51]} 14. cxd4 {[%clk 0:02:29]}  Nb4 {[%clk 0:02:51]} 15. Rc1 {[%clk 0:02:25]}  Qa5 {[%clk 0:02:25]} 16. Ndf3 {[%clk 0:02:18]}  Rxc1 {[%clk 0:02:12]} 17. Bxc1 {[%clk 0:02:16]}  Rc8 {[%clk 0:02:06]} 18. Bd2 {[%clk 0:02:13]}  Qa6 {[%clk 0:01:39]} 19. Qb3 {[%clk 0:02:05]}  Nbd5 {[%clk 0:01:10]} 20. e4 {[%clk 0:02:02]}  Nb6 {[%clk 0:01:09]} 21. a5 {[%clk 0:02:01]}  Nc4 {[%clk 0:01:04]} 22. Bc3 {[%clk 0:02:02]}  Nxa5 {[%clk 0:00:55]} 23. Bxa5 {[%clk 0:01:55]}  Qxa5 {[%clk 0:00:54]} 24. Qb7 {[%clk 0:01:53]}  Qc7 {[%clk 0:00:52]} 25. Qb5 {[%clk 0:01:52]}  d6 {[%clk 0:00:49]} 26. Nd3 {[%clk 0:01:49]}  Qc6 {[%clk 0:00:41]} 27. Qxc6 {[%clk 0:01:42]}  Rxc6 {[%clk 0:00:41]} 28. d5 {[%clk 0:01:42]}  exd5 {[%clk 0:00:39]} 29. exd5 {[%clk 0:01:40]}  Nxd5 {[%clk 0:00:39]} 30. Nd4 {[%clk 0:01:38]}  Rc3 {[%clk 0:00:33]} 31. Nb4 {[%clk 0:01:31]}  Nxb4 {[%clk 0:00:20]} 32. Rxe7 {[%clk 0:01:31]}  g6 {[%clk 0:00:19]} 33. Rxa7 {[%clk 0:01:31]}  Rd3 {[%clk 0:00:18]} 34. Nf3 {[%clk 0:01:27]}  h6 {[%clk 0:00:17]} 35. h4 {[%clk 0:01:26]}  Kg7 {[%clk 0:00:17]} 36. h5 {[%clk 0:01:26]}  g5 {[%clk 0:00:16]} 37. Rd7 {[%clk 0:01:21]}  Nc6 {[%clk 0:00:13]} 38. Ne1 {[%clk 0:01:12]}  Rd2 {[%clk 0:00:10]} 39. Nf3 {[%clk 0:01:11]}  Rd5 {[%clk 0:00:10]} 40. g4 {[%clk 0:01:03]}  Kf6 {[%clk 0:00:09]} 41. Kg3 {[%clk 0:00:53]}  Ke6 {[%clk 0:00:08]} 42. Rc7 {[%clk 0:00:51]}  Ne5 {[%clk 0:00:08]} 43. Nxe5 {[%clk 0:00:51]}  Rxe5 {[%clk 0:00:07]} 44. Rc8 {[%clk 0:00:50]}  Ke7 {[%clk 0:00:07]} 45. Rc7+ {[%clk 0:00:45]}  Ke8 {[%clk 0:00:05]} 46. Rc8+ {[%clk 0:00:44]}  Kd7 {[%clk 0:00:05]} 47. Rf8 {[%clk 0:00:44]}  Ke7 {[%clk 0:00:05]} 48. Rh8 {[%clk 0:00:44]}  Re6 {[%clk 0:00:05]} 49. Kf3 {[%clk 0:00:41]}  d5 {[%clk 0:00:05]} 50. Ra8 {[%clk 0:00:41]}  d4 {[%clk 0:00:05]} 51. Ra7+ {[%clk 0:00:41]}  Kf6 {[%clk 0:00:04]} 52. Rd7 {[%clk 0:00:41]}  Ke5 {[%clk 0:00:03]} 53. Rxf7 {[%clk 0:00:38]}  Rd6 {[%clk 0:00:01]} 54. Rf5+ {[%clk 0:00:35]}  Ke6 {[%clk 0:00:02]} 55. Ke2 {[%clk 0:00:34]}  d3+ {[%clk 0:00:02]} 56. Kd2 {[%clk 0:00:35]}  Rd4 {[%clk 0:00:02]} 57. f3 {[%clk 0:00:34]} 1-0


[Site "https://www.chess.com"]